[Event "*** Titled Tuesday Blitz"]
[Site "Chess.com"]
[Date "2018.11.06"]
[Round "4"]
[White "aquaticpineapples"]
[Black "Me_ch_an"]
[Result "1-0"]
[WhiteElo "2014"]
[BlackElo "2194"]
[TimeControl "180+2"]
[EndTime "13:52:43 PST"]
[Termination "aquaticpineapples won by checkmate"]

1. d4 {[%clk 0:03:01.9]} 1... d5 {[%clk 0:03:00.3]} 2. Nf3 {[%clk 0:03:02.6]}
2... Nf6 {[%clk 0:03:00.4]} 3. e3 {[%clk 0:03:03.8]} 3... e6 {[%clk 0:02:55.5]}
4. Bd3 {[%clk 0:03:04.3]} 4... c5 {[%clk 0:02:53.2]} 5. b3 {[%clk 0:03:04.8]}
5... Nc6 {[%clk 0:02:53]} 6. a3 {[%clk 0:03:05.8]} 6... a6 {[%clk 0:02:49.9]} 7.
Bb2 {[%clk 0:02:46]} 7... b5 {[%clk 0:02:49.1]} 8. c4 {[%clk 0:02:46.5]} 8...
bxc4 {[%clk 0:02:46.7]} 9. bxc4 {[%clk 0:02:48.4]} 9... Rb8 {[%clk 0:02:45.6]}
10. Qc2 {[%clk 0:02:44.3]} 10... Qb6 {[%clk 0:02:39.8]} 11. Bc3 {[%clk
0:02:28.6]} 11... cxd4 {[%clk 0:02:35.5]} 12. Nxd4 {[%clk 0:02:27.3]} 12... Be7
{[%clk 0:02:29.9]} 13. cxd5 {[%clk 0:02:05.9]} 13... Nxd5 {[%clk 0:02:31.8]} 14.
Nxc6 {[%clk 0:02:06.8]} 14... Qxc6 {[%clk 0:02:30.3]} 15. Bxg7 {[%clk
0:02:04.1]} 15... Qxc2 {[%clk 0:02:23.8]} 16. Bxc2 {[%clk 0:02:04.7]} 16... Rg8
{[%clk 0:02:23.1]} 17. Be5 {[%clk 0:02:05.4]} 17... Rb6 {[%clk 0:02:17.6]} 18.
O-O {[%clk 0:02:01.6]} 18... f5 {[%clk 0:02:17]} 19. Nc3 {[%clk 0:01:48.9]}
19... Bb7 {[%clk 0:02:17.1]} 20. Nxd5 {[%clk 0:01:37.3]} 20... Bxd5 {[%clk
0:02:19]} 21. g3 {[%clk 0:01:34.1]} 21... h5 {[%clk 0:02:19.2]} 22. Ba4+ {[%clk
0:01:24.6]} 22... Kf7 {[%clk 0:02:17.4]} 23. Bd4 {[%clk 0:01:14.8]} 23... Rb7
{[%clk 0:02:15.1]} 24. Rfc1 {[%clk 0:01:11.3]} 24... h4 {[%clk 0:02:11.6]} 25.
Bc6 {[%clk 0:01:04.4]} 25... Rb3 {[%clk 0:01:55.3]} 26. Bxd5 {[%clk 0:01:01.3]}
26... exd5 {[%clk 0:01:57.2]} 27. Rc7 {[%clk 0:00:53.8]} 27... hxg3 {[%clk
0:01:34.8]} 28. hxg3 {[%clk 0:00:52]} 28... Ke6 {[%clk 0:01:28.2]} 29. Rc6+
{[%clk 0:00:45.9]} 29... Kd7 {[%clk 0:01:27.4]} 30. Rxa6 {[%clk 0:00:45.1]}
30... Bd6 {[%clk 0:01:27.8]} 31. a4 {[%clk 0:00:37.9]} 31... f4 {[%clk
0:01:27.4]} 32. exf4 {[%clk 0:00:35.6]} 32... Bxf4 {[%clk 0:01:29.3]} 33. Ra7+
{[%clk 0:00:27.8]} 33... Ke6 {[%clk 0:01:28.9]} 34. Re1+ {[%clk 0:00:25.9]}
34... Kd6 {[%clk 0:01:22.6]} 35. Ra6+ {[%clk 0:00:15.6]} 35... Kd7 {[%clk
0:01:20.7]} 36. Ra7+ {[%clk 0:00:15.7]} 36... Kd6 {[%clk 0:01:20.9]} 37. Ree7
{[%clk 0:00:16.3]} 37... Bxg3 {[%clk 0:00:54.6]} 38. fxg3 {[%clk 0:00:17.3]}
38... Rgxg3+ {[%clk 0:00:55.2]} 39. Kf2 {[%clk 0:00:16.8]} 39... Rgf3+ {[%clk
0:00:53.9]} 40. Ke2 {[%clk 0:00:17.5]} 40... Rh3 {[%clk 0:00:51.9]} 41. Rad7+
{[%clk 0:00:17.9]} 41... Kc6 {[%clk 0:00:52.1]} 42. Rc7+ {[%clk 0:00:19.1]}
42... Kd6 {[%clk 0:00:47.3]} 43. Be5# {[%clk 0:00:20.3]} 1-0

[Event "*** Titled Tuesday Blitz"]
[Site "Chess.com"]
[Date "2018.11.06"]
[Round "4"]
[White "Sordis"]
[Black "talento10"]
[Result "1-0"]
[WhiteElo "2290"]
[BlackElo "2429"]
[TimeControl "180+2"]
[EndTime "13:52:47 PST"]
[Termination "Sordis won by checkmate"]

1. c4 {[%clk 0:03:01.9]} 1... Nf6 {[%clk 0:02:55.4]} 2. g3 {[%clk 0:03:02.5]}
2... e6 {[%clk 0:02:55.8]} 3. Bg2 {[%clk 0:03:03.7]} 3... d5 {[%clk 0:02:56.6]}
4. Nf3 {[%clk 0:03:05.2]} 4... Be7 {[%clk 0:02:56.8]} 5. O-O {[%clk 0:03:06.3]}
5... O-O {[%clk 0:02:58.4]} 6. b3 {[%clk 0:03:07.7]} 6... c5 {[%clk 0:02:58.8]}
7. cxd5 {[%clk 0:03:08.5]} 7... exd5 {[%clk 0:02:59.8]} 8. d4 {[%clk 0:03:09.7]}
8... b6 {[%clk 0:02:58.2]} 9. Bb2 {[%clk 0:03:09.5]} 9... Nc6 {[%clk 0:02:29.9]}
10. Nc3 {[%clk 0:02:59.6]} 10... Be6 {[%clk 0:02:29.8]} 11. Ne5 {[%clk
0:02:55.2]} 11... Nxd4 {[%clk 0:02:28.4]} 12. e3 {[%clk 0:02:52.7]} 12... Nf5
{[%clk 0:02:29.7]} 13. g4 {[%clk 0:02:37]} 13... Nh4 {[%clk 0:02:28.7]} 14. g5
{[%clk 0:02:37.9]} 14... Rc8 {[%clk 0:01:42]} 15. gxf6 {[%clk 0:02:23]} 15...
Bxf6 {[%clk 0:01:43.9]} 16. f4 {[%clk 0:02:21.1]} 16... Bxe5 {[%clk 0:01:33.9]}
17. fxe5 {[%clk 0:02:21.3]} 17... Qg5 {[%clk 0:01:35.6]} 18. Qe2 {[%clk
0:02:05.3]} 18... Bh3 {[%clk 0:01:36.3]} 19. Rf2 {[%clk 0:02:05.5]} 19... Rcd8
{[%clk 0:01:26.8]} 20. Kh1 {[%clk 0:01:56.8]} 20... Bxg2+ {[%clk 0:01:17.2]} 21.
Rxg2 {[%clk 0:01:56.8]} 21... Qxg2+ {[%clk 0:01:19.1]} 22. Qxg2 {[%clk
0:01:57.7]} 22... Nxg2 {[%clk 0:01:21]} 23. Kxg2 {[%clk 0:01:58.6]} 23... Rfe8
{[%clk 0:01:22.4]} 24. Ne2 {[%clk 0:01:58.9]} 24... f6 {[%clk 0:01:20.7]} 25.
exf6 {[%clk 0:01:57.3]} 25... Rxe3 {[%clk 0:01:12]} 26. Kf2 {[%clk 0:01:55.3]}
26... Rde8 {[%clk 0:01:11.6]} 27. Ng3 {[%clk 0:01:51.5]} 27... g6 {[%clk
0:01:07.4]} 28. Rd1 {[%clk 0:01:49.9]} 28... d4 {[%clk 0:01:08.1]} 29. Rd2
{[%clk 0:01:50]} 29... Kf7 {[%clk 0:01:09.1]} 30. b4 {[%clk 0:01:31.6]} 30...
Kxf6 {[%clk 0:00:43.4]} 31. bxc5 {[%clk 0:01:28.1]} 31... bxc5 {[%clk
0:00:45.3]} 32. Rc2 {[%clk 0:01:26.3]} 32... R3e5 {[%clk 0:00:38.5]} 33. Kf3
{[%clk 0:00:54.6]} 33... Kg5 {[%clk 0:00:36]} 34. Bc1+ {[%clk 0:00:48]} 34...
Kh4 {[%clk 0:00:30.7]} 35. Bf4 {[%clk 0:00:39.1]} 35... Rd5 {[%clk 0:00:21.2]}
36. Rg2 {[%clk 0:00:27.3]} 36... d3 {[%clk 0:00:20.5]} 37. Nf1 {[%clk
0:00:24.1]} 37... Rf8 {[%clk 0:00:15.7]} 38. Rg4+ {[%clk 0:00:23.4]} 38... Kh5
{[%clk 0:00:16.9]} 39. Ng3# {[%clk 0:00:24.5]} 1-0

[Event "*** Titled Tuesday Blitz"]
[Site "Chess.com"]
[Date "2018.11.06"]
[Round "4"]
[White "Pilopa"]
[Black "TheRigos"]
[Result "1-0"]
[WhiteElo "2396"]
[BlackElo "2409"]
[TimeControl "180+2"]
[EndTime "13:52:52 PST"]
[Termination "Pilopa won by resignation"]

1. d4 {[%clk 0:02:59.4]} 1... Nf6 {[%clk 0:03:00.9]} 2. c4 {[%clk 0:02:59.6]}
2... c5 {[%clk 0:03:02.3]} 3. d5 {[%clk 0:02:59.9]} 3... b5 {[%clk 0:03:03.7]}
4. cxb5 {[%clk 0:03:00.8]} 4... a6 {[%clk 0:03:04.8]} 5. bxa6 {[%clk 0:03:02]}
5... g6 {[%clk 0:03:06.1]} 6. Nc3 {[%clk 0:03:02.5]} 6... Bxa6 {[%clk
0:03:07.1]} 7. e4 {[%clk 0:03:02.8]} 7... Bxf1 {[%clk 0:03:09]} 8. Kxf1 {[%clk
0:03:03.9]} 8... d6 {[%clk 0:03:10.9]} 9. Nf3 {[%clk 0:02:51.8]} 9... Bg7 {[%clk
0:03:10.7]} 10. g3 {[%clk 0:02:52.5]} 10... O-O {[%clk 0:03:11.6]} 11. Kg2
{[%clk 0:02:53.7]} 11... Nbd7 {[%clk 0:03:11.4]} 12. a4 {[%clk 0:02:53.8]} 12...
Ra6 {[%clk 0:03:10.9]} 13. Qe2 {[%clk 0:02:40.1]} 13... Qa8 {[%clk 0:03:08.2]}
14. Re1 {[%clk 0:02:36.3]} 14... Rc8 {[%clk 0:03:03]} 15. Bd2 {[%clk 0:02:34.5]}
15... Ng4 {[%clk 0:02:51.7]} 16. b3 {[%clk 0:02:27.9]} 16... Nde5 {[%clk
0:01:26.5]} 17. Nxe5 {[%clk 0:02:27.3]} 17... Nxe5 {[%clk 0:01:28.4]} 18. f4
{[%clk 0:02:16]} 18... Nd7 {[%clk 0:01:23.8]} 19. Rab1 {[%clk 0:02:10]} 19... c4
{[%clk 0:01:15.4]} 20. bxc4 {[%clk 0:01:36.2]} 20... Nc5 {[%clk 0:01:01.5]} 21.
e5 {[%clk 0:01:31.8]} 21... Rxa4 {[%clk 0:00:57]} 22. Nxa4 {[%clk 0:01:27.5]}
22... Qxa4 {[%clk 0:00:51.2]} 23. Bb4 {[%clk 0:01:10.8]} 23... Na6 {[%clk
0:00:09.9]} 24. Ra1 {[%clk 0:01:05.2]} 24... Qxb4 {[%clk 0:00:09.6]} 25. Rxa6
{[%clk 0:01:05.5]} 25... dxe5 {[%clk 0:00:07.6]} 26. fxe5 {[%clk 0:01:02.2]}
26... Rxc4 {[%clk 0:00:08.7]} 27. Ra8+ {[%clk 0:01:01.8]} 27... Bf8 {[%clk
0:00:10]} 28. Qf3 {[%clk 0:00:47.4]} 28... Qb5 {[%clk 0:00:05.1]} 29. Re2 {[%clk
0:00:42.2]} 29... Rc5 {[%clk 0:00:05.7]} 30. e6 {[%clk 0:00:27.4]} 30... f6
{[%clk 0:00:04.1]} 31. d6 {[%clk 0:00:26.7]} 31... Re5 {[%clk 0:00:03.2]} 32.
Rxe5 {[%clk 0:00:24.9]} 32... Qxe5 {[%clk 0:00:03.9]} 33. dxe7 {[%clk
0:00:25.2]} 33... Qb2+ {[%clk 0:00:03.6]} 34. Kh3 {[%clk 0:00:26.2]} 34... Qe5
{[%clk 0:00:04.2]} 1-0

[Event "*** Titled Tuesday Blitz"]
[Site "Chess.com"]
[Date "2018.11.06"]
[Round "4"]
[White "INDIAN-ELEPHANT"]
[Black "RegZryt"]
[Result "0-1"]
[WhiteElo "2653"]
[BlackElo "2511"]
[TimeControl "180+2"]
[EndTime "13:52:55 PST"]
[Termination "RegZryt won by resignation"]

1. d4 {[%clk 0:02:59.6]} 1... d5 {[%clk 0:03:00.3]} 2. Nf3 {[%clk 0:03:00.5]}
2... Nf6 {[%clk 0:03:00.9]} 3. c4 {[%clk 0:03:01.4]} 3... e6 {[%clk 0:03:01.8]}
4. g3 {[%clk 0:03:02.3]} 4... Be7 {[%clk 0:03:02.9]} 5. Bg2 {[%clk 0:03:03.1]}
5... O-O {[%clk 0:03:04.4]} 6. Qc2 {[%clk 0:03:03.4]} 6... b6 {[%clk 0:03:02.9]}
7. O-O {[%clk 0:03:04]} 7... dxc4 {[%clk 0:03:03.9]} 8. Bg5 {[%clk 0:03:01.7]}
8... Nd5 {[%clk 0:03:04.2]} 9. Bxe7 {[%clk 0:03:00.5]} 9... Qxe7 {[%clk
0:03:06.1]} 10. Qxc4 {[%clk 0:03:00.8]} 10... Bb7 {[%clk 0:03:04.2]} 11. Nbd2
{[%clk 0:02:56.7]} 11... c5 {[%clk 0:03:03.1]} 12. dxc5 {[%clk 0:02:49.8]} 12...
Rc8 {[%clk 0:03:01.9]} 13. Nb3 {[%clk 0:02:46.6]} 13... Na6 {[%clk 0:02:57.7]}
14. e4 {[%clk 0:02:23.8]} 14... Nf6 {[%clk 0:02:37.2]} 15. c6 {[%clk 0:02:19.8]}
15... Rxc6 {[%clk 0:02:37.1]} 16. Qe2 {[%clk 0:02:16.2]} 16... e5 {[%clk
0:02:36.1]} 17. Rfc1 {[%clk 0:02:07.2]} 17... Nb4 {[%clk 0:02:28.6]} 18. Rxc6
{[%clk 0:02:05.5]} 18... Nxc6 {[%clk 0:02:29.5]} 19. Rd1 {[%clk 0:01:53.3]}
19... Rd8 {[%clk 0:02:28.7]} 20. Rc1 {[%clk 0:01:48.6]} 20... Nb4 {[%clk
0:02:21.3]} 21. Ne1 {[%clk 0:01:19.1]} 21... Ba6 {[%clk 0:02:15.8]} 22. Qe3
{[%clk 0:01:16.2]} 22... Nxa2 {[%clk 0:02:11.2]} 23. Ra1 {[%clk 0:01:16.8]}
23... Nb4 {[%clk 0:02:12.3]} 24. Qc3 {[%clk 0:01:15.2]} 24... Rc8 {[%clk
0:02:04.4]} 25. Qd2 {[%clk 0:01:15.9]} 25... Bc4 {[%clk 0:02:00.1]} 26. Nc1
{[%clk 0:01:13.4]} 26... a5 {[%clk 0:02:00]} 27. h3 {[%clk 0:00:59]} 27... Be6
{[%clk 0:01:49.6]} 28. Ncd3 {[%clk 0:00:57.5]} 28... Nxd3 {[%clk 0:01:47.9]} 29.
Nxd3 {[%clk 0:00:59.4]} 29... Qd7 {[%clk 0:01:49.3]} 30. Qe3 {[%clk 0:00:59.4]}
30... Qd4 {[%clk 0:01:48.4]} 31. Qxd4 {[%clk 0:00:57]} 31... exd4 {[%clk
0:01:50.3]} 32. f4 {[%clk 0:00:56]} 32... Bc4 {[%clk 0:01:48.8]} 33. Rc1 {[%clk
0:00:55.8]} 33... Ba6 {[%clk 0:01:46.3]} 34. e5 {[%clk 0:00:46.3]} 34... Rxc1+
{[%clk 0:01:44.4]} 35. Nxc1 {[%clk 0:00:48.2]} 35... Nd7 {[%clk 0:01:43.4]} 36.
Bf1 {[%clk 0:00:49.7]} 36... Bxf1 {[%clk 0:01:40.5]} 37. Kxf1 {[%clk 0:00:51.6]}
37... Nc5 {[%clk 0:01:42.1]} 38. Ke2 {[%clk 0:00:50.8]} 38... Kf8 {[%clk
0:01:41.2]} 39. Nd3 {[%clk 0:00:50.2]} 39... Ke7 {[%clk 0:01:35.2]} 40. Ne1
{[%clk 0:00:51.2]} 40... Ke6 {[%clk 0:01:35.2]} 41. Nf3 {[%clk 0:00:50.8]} 41...
Kd5 {[%clk 0:01:32.3]} 42. Ng5 {[%clk 0:00:51.8]} 42... Ne4 {[%clk 0:01:32.3]}
43. Nxf7 {[%clk 0:00:48.5]} 43... Nxg3+ {[%clk 0:01:32.7]} 44. Kd3 {[%clk
0:00:49.8]} 44... Nh5 {[%clk 0:01:31.8]} 45. f5 {[%clk 0:00:50.1]} 45... Ng3
{[%clk 0:01:28.2]} 46. f6 {[%clk 0:00:41.9]} 46... gxf6 {[%clk 0:01:29]} 47.
exf6 {[%clk 0:00:43.8]} 47... Nh5 {[%clk 0:01:28.6]} 48. Ng5 {[%clk 0:00:36.4]}
48... Nxf6 {[%clk 0:01:29.5]} 49. Nf3 {[%clk 0:00:38.3]} 49... Nh5 {[%clk
0:01:28.7]} 50. Nxd4 {[%clk 0:00:38.7]} 50... Nf4+ {[%clk 0:01:29.6]} 51. Ke3
{[%clk 0:00:39.9]} 51... Nxh3 {[%clk 0:01:30.9]} 52. Nf3 {[%clk 0:00:40.3]}
52... Kc4 {[%clk 0:01:30.4]} 53. Kd2 {[%clk 0:00:39.7]} 53... Kb3 {[%clk
0:01:30.2]} 54. Kc1 {[%clk 0:00:40.8]} 54... h5 {[%clk 0:01:30.4]} 55. Kb1
{[%clk 0:00:38.4]} 55... Nf4 {[%clk 0:01:28.3]} 56. Nd2+ {[%clk 0:00:38.3]}
56... Kb4 {[%clk 0:01:28.3]} 57. Nf3 {[%clk 0:00:40.2]} 57... Ng2 {[%clk
0:01:27.9]} 0-1

[Event "*** Titled Tuesday Blitz"]
[Site "Chess.com"]
[Date "2018.11.06"]
[Round "4"]
[White "EvgenyT"]
[Black "MikaelyanArman"]
[Result "1-0"]
[WhiteElo "2939"]
[BlackElo "2739"]
[TimeControl "180+2"]
[EndTime "13:53:04 PST"]
[Termination "EvgenyT won on time"]

1. c4 {[%clk 0:03:00.5]} 1... c6 {[%clk 0:02:59.5]} 2. Nf3 {[%clk 0:03:00.4]}
2... d5 {[%clk 0:02:59.6]} 3. e3 {[%clk 0:03:01.7]} 3... Nf6 {[%clk 0:03:00.3]}
4. Nc3 {[%clk 0:03:01.7]} 4... Nbd7 {[%clk 0:03:01.2]} 5. cxd5 {[%clk
0:03:01.3]} 5... cxd5 {[%clk 0:03:00.8]} 6. d4 {[%clk 0:03:01.2]} 6... e6 {[%clk
0:03:01.8]} 7. Bd3 {[%clk 0:02:55]} 7... Bd6 {[%clk 0:03:02.5]} 8. O-O {[%clk
0:02:54.6]} 8... O-O {[%clk 0:03:03.3]} 9. Bd2 {[%clk 0:02:54.2]} 9... a6 {[%clk
0:03:01.1]} 10. Rc1 {[%clk 0:02:51.7]} 10... Qe7 {[%clk 0:03:01.2]} 11. Ne2
{[%clk 0:02:40.7]} 11... Ne4 {[%clk 0:02:59.4]} 12. Be1 {[%clk 0:02:28.7]} 12...
b5 {[%clk 0:02:49.4]} 13. Ng3 {[%clk 0:02:22.1]} 13... f5 {[%clk 0:02:48]} 14.
Ba5 {[%clk 0:02:21.4]} 14... Ndf6 {[%clk 0:02:30.5]} 15. Ne5 {[%clk 0:01:49]}
15... Bxe5 {[%clk 0:02:24.3]} 16. dxe5 {[%clk 0:01:46.9]} 16... Ng4 {[%clk
0:02:25.3]} 17. Bxe4 {[%clk 0:01:16]} 17... dxe4 {[%clk 0:02:20]} 18. Nxe4
{[%clk 0:01:16.1]} 18... Qh4 {[%clk 0:02:06.6]} 19. h3 {[%clk 0:01:16.7]} 19...
Nxe3 {[%clk 0:02:05.3]} 20. Nf6+ {[%clk 0:01:15.5]} 20... gxf6 {[%clk
0:01:40.5]} 21. fxe3 {[%clk 0:01:15.4]} 21... Bb7 {[%clk 0:01:39.9]} 22. Rc7
{[%clk 0:00:52.9]} 22... Bd5 {[%clk 0:01:35.1]} 23. Rxf5 {[%clk 0:00:35.4]}
23... fxe5 {[%clk 0:00:44.3]} 24. Qh5 {[%clk 0:00:25.6]} 24... Qxh5 {[%clk
0:00:33.8]} 25. Rxh5 {[%clk 0:00:26.3]} 25... Rf5 {[%clk 0:00:22.7]} 26. Rhxh7
{[%clk 0:00:16]} 26... Rg5 {[%clk 0:00:22.8]} 27. g4 {[%clk 0:00:16.8]} 27...
Rf8 {[%clk 0:00:22.6]} 28. Rhe7 {[%clk 0:00:17.2]} 28... Rg6 {[%clk 0:00:18]}
29. Bc3 {[%clk 0:00:13.9]} 29... Rg5 {[%clk 0:00:10.5]} 30. a3 {[%clk
0:00:14.6]} 30... Bf3 {[%clk 0:00:08.9]} 31. Kh2 {[%clk 0:00:15.1]} 31... a5
{[%clk 0:00:05.5]} 32. Kg3 {[%clk 0:00:14.9]} 32... Bd5 {[%clk 0:00:05.2]} 33.
Kh4 {[%clk 0:00:11.2]} 33... Rg6 {[%clk 0:00:05.8]} 34. Bxe5 {[%clk 0:00:11.3]}
34... Rh6+ {[%clk 0:00:06.1]} 35. Kg5 {[%clk 0:00:12.1]} 1-0

[Event "*** Titled Tuesday Blitz"]
[Site "Chess.com"]
[Date "2018.11.06"]
[Round "4"]
[White "ahachess"]
[Black "Phelathegreat"]
[Result "1-0"]
[WhiteElo "2358"]
[BlackElo "2333"]
[TimeControl "180+2"]
[EndTime "13:53:04 PST"]
[Termination "ahachess won by resignation"]

1. d4 {[%clk 0:03:01.9]} 1... Nf6 {[%clk 0:03:00.1]} 2. c4 {[%clk 0:03:02.9]}
2... e6 {[%clk 0:03:01.5]} 3. g3 {[%clk 0:03:03.7]} 3... Bb4+ {[%clk 0:03:02.5]}
4. Bd2 {[%clk 0:03:04.5]} 4... Qe7 {[%clk 0:03:03.8]} 5. Bg2 {[%clk 0:03:05.2]}
5... O-O {[%clk 0:03:04.3]} 6. Nf3 {[%clk 0:03:06.3]} 6... Bxd2+ {[%clk
0:03:05.6]} 7. Nbxd2 {[%clk 0:03:06.8]} 7... Nc6 {[%clk 0:03:07.5]} 8. O-O
{[%clk 0:03:07.6]} 8... d6 {[%clk 0:03:09.1]} 9. e3 {[%clk 0:03:08.6]} 9... e5
{[%clk 0:03:01.7]} 10. d5 {[%clk 0:03:05.9]} 10... Nb8 {[%clk 0:03:00.3]} 11. b4
{[%clk 0:03:05.2]} 11... a5 {[%clk 0:03:01.3]} 12. a3 {[%clk 0:03:06]} 12... Na6
{[%clk 0:03:02.8]} 13. Qb3 {[%clk 0:03:05.8]} 13... Bg4 {[%clk 0:03:02.9]} 14.
h3 {[%clk 0:02:55.3]} 14... Bd7 {[%clk 0:03:01.2]} 15. e4 {[%clk 0:02:46.1]}
15... c6 {[%clk 0:03:01.8]} 16. Ne1 {[%clk 0:02:43]} 16... axb4 {[%clk
0:03:00.5]} 17. axb4 {[%clk 0:02:42.9]} 17... c5 {[%clk 0:03:02.1]} 18. b5
{[%clk 0:02:28.1]} 18... Nb4 {[%clk 0:02:59.7]} 19. Nd3 {[%clk 0:02:29.1]} 19...
Nxd3 {[%clk 0:02:59.1]} 20. Qxd3 {[%clk 0:02:29.4]} 20... Qd8 {[%clk 0:02:56.3]}
21. Qc3 {[%clk 0:02:24.3]} 21... Qb6 {[%clk 0:02:56.4]} 22. Kh2 {[%clk
0:02:20.6]} 22... Rfe8 {[%clk 0:02:56.2]} 23. f3 {[%clk 0:02:13]} 23... h6
{[%clk 0:02:56.2]} 24. Ra3 {[%clk 0:02:13.2]} 24... Rxa3 {[%clk 0:02:56.1]} 25.
Qxa3 {[%clk 0:02:13.6]} 25... Nh7 {[%clk 0:02:52.7]} 26. Ra1 {[%clk 0:02:13.2]}
26... Qd8 {[%clk 0:02:51.8]} 27. Qa5 {[%clk 0:01:55]} 27... Qg5 {[%clk
0:02:51.9]} 28. Nf1 {[%clk 0:01:55.6]} 28... Nf8 {[%clk 0:02:52.9]} 29. Qc7
{[%clk 0:01:54.3]} 29... Bc8 {[%clk 0:02:54.2]} 30. Qxd6 {[%clk 0:01:53.6]}
30... f5 {[%clk 0:02:50.4]} 31. exf5 {[%clk 0:01:44.6]} 31... Bxf5 {[%clk
0:02:48.9]} 32. Qxc5 {[%clk 0:01:43.7]} 32... e4 {[%clk 0:02:50.3]} 33. f4
{[%clk 0:01:33.5]} 33... Qf6 {[%clk 0:02:51.2]} 34. Re1 {[%clk 0:01:29.9]} 34...
h5 {[%clk 0:02:51.3]} 35. Ne3 {[%clk 0:01:28.3]} 35... Bh7 {[%clk 0:02:52.7]}
36. d6 {[%clk 0:01:27.7]} 36... h4 {[%clk 0:02:49.3]} 37. Qd5+ {[%clk
0:01:21.7]} 37... Kh8 {[%clk 0:02:50]} 38. Ng4 {[%clk 0:01:22.5]} 38... hxg3+
{[%clk 0:02:50.3]} 39. Kxg3 {[%clk 0:01:23.6]} 39... Qc3+ {[%clk 0:02:49.7]} 40.
Re3 {[%clk 0:01:24.9]} 40... Qc2 {[%clk 0:02:33]} 41. Ne5 {[%clk 0:01:16.1]}
41... Re6 {[%clk 0:02:17.7]} 42. d7 {[%clk 0:01:13.4]} 42... Qc1 {[%clk
0:02:08.6]} 43. Kf2 {[%clk 0:00:49.3]} 43... Rf6 {[%clk 0:01:54.8]} 44. Nf7+
{[%clk 0:00:42.1]} 44... Kg8 {[%clk 0:01:54]} 45. Ng5+ {[%clk 0:00:34.2]} 45...
Kh8 {[%clk 0:01:51.2]} 46. d8=Q {[%clk 0:00:10.6]} 46... Rxf4+ {[%clk
0:01:51.3]} 47. Nf3 {[%clk 0:00:10.9]} 47... exf3 {[%clk 0:01:48.3]} 48. Rxf3
{[%clk 0:00:10.8]} 48... Qc2+ {[%clk 0:01:44.1]} 49. Qd2 {[%clk 0:00:10.9]}
49... Rxf3+ {[%clk 0:01:40.1]} 50. Bxf3 {[%clk 0:00:12.4]} 50... Qf5 {[%clk
0:01:36.1]} 51. Q2d6 {[%clk 0:00:12.4]} 51... Bg8 {[%clk 0:01:35.8]} 52. Q8xf8
{[%clk 0:00:12.9]} 52... Qc2+ {[%clk 0:01:36.5]} 53. Kg3 {[%clk 0:00:14]} 53...
Qxc4 {[%clk 0:01:36.4]} 54. Qdf4 {[%clk 0:00:14.5]} 54... Qxf4+ {[%clk
0:01:32.6]} 55. Kxf4 {[%clk 0:00:15.8]} 55... Kh7 {[%clk 0:01:34.5]} 56. Be4+
{[%clk 0:00:16.9]} 1-0

[Event "*** Titled Tuesday Blitz"]
[Site "Chess.com"]
[Date "2018.11.06"]
[Round "4"]
[White "Ar4uha"]
[Black "TST2014"]
[Result "1-0"]
[WhiteElo "2610"]
[BlackElo "2492"]
[TimeControl "180+2"]
[EndTime "13:53:06 PST"]
[Termination "Ar4uha won on time"]

1. e4 {[%clk 0:03:01.9]} 1... c5 {[%clk 0:02:59.8]} 2. Nf3 {[%clk 0:02:57]} 2...
Nc6 {[%clk 0:03:00.5]} 3. Bb5 {[%clk 0:02:58.4]} 3... g6 {[%clk 0:03:00.2]} 4.
Bxc6 {[%clk 0:02:58.4]} 4... dxc6 {[%clk 0:03:00.2]} 5. d3 {[%clk 0:03:00.3]}
5... Bg7 {[%clk 0:03:01]} 6. h3 {[%clk 0:03:00.6]} 6... Nf6 {[%clk 0:03:01.2]}
7. Be3 {[%clk 0:03:01]} 7... b6 {[%clk 0:03:01.3]} 8. Nc3 {[%clk 0:03:01]} 8...
O-O {[%clk 0:03:01.3]} 9. O-O {[%clk 0:03:01.2]} 9... e5 {[%clk 0:03:00.4]} 10.
Nh2 {[%clk 0:02:56.3]} 10... Nh5 {[%clk 0:02:55.7]} 11. Ne2 {[%clk 0:02:54.3]}
11... Qh4 {[%clk 0:02:44.7]} 12. f4 {[%clk 0:02:49.1]} 12... exf4 {[%clk
0:02:33.6]} 13. Nxf4 {[%clk 0:02:51]} 13... Nxf4 {[%clk 0:02:21]} 14. Rxf4
{[%clk 0:02:52.9]} 14... Qg3 {[%clk 0:02:15.1]} 15. Nf1 {[%clk 0:02:48.5]} 15...
Qg5 {[%clk 0:02:06.6]} 16. Rxf7 {[%clk 0:02:48.7]} 16... Qe5 {[%clk 0:02:01]}
17. Rxf8+ {[%clk 0:02:40.9]} 17... Bxf8 {[%clk 0:02:01.1]} 18. c3 {[%clk
0:02:41.7]} 18... Be6 {[%clk 0:01:59]} 19. Qf3 {[%clk 0:02:42.3]} 19... Bd6
{[%clk 0:01:56]} 20. d4 {[%clk 0:02:34.8]} 20... cxd4 {[%clk 0:01:52.1]} 21.
Bxd4 {[%clk 0:02:36.7]} 21... Qf4 {[%clk 0:01:45.3]} 22. Qxf4 {[%clk 0:02:38.1]}
22... Bxf4 {[%clk 0:01:46.6]} 23. Be3 {[%clk 0:02:34.9]} 23... Be5 {[%clk
0:01:44.5]} 24. a4 {[%clk 0:02:31.7]} 24... Rd8 {[%clk 0:01:32.3]} 25. Nd2
{[%clk 0:02:32.9]} 25... c5 {[%clk 0:01:27.5]} 26. Kf2 {[%clk 0:02:32.8]} 26...
a5 {[%clk 0:01:20.1]} 27. Nf3 {[%clk 0:02:25.9]} 27... Bc7 {[%clk 0:01:11.6]}
28. Bg5 {[%clk 0:02:26.4]} 28... Rd3 {[%clk 0:01:10.2]} 29. Ne1 {[%clk
0:02:15.6]} 29... Bg3+ {[%clk 0:01:04.5]} 30. Ke2 {[%clk 0:02:15.9]} 30... Rd7
{[%clk 0:00:56.9]} 31. Be3 {[%clk 0:02:07.1]} 31... Bb3 {[%clk 0:00:51.7]} 32.
Kf3 {[%clk 0:01:56.9]} 32... Be5 {[%clk 0:00:40.6]} 33. h4 {[%clk 0:01:50.1]}
33... Kf7 {[%clk 0:00:40.4]} 34. g3 {[%clk 0:01:36.2]} 34... Ke6 {[%clk
0:00:38.7]} 35. Ng2 {[%clk 0:01:37.1]} 35... Rd3 {[%clk 0:00:30.1]} 36. Nf4+
{[%clk 0:01:33.8]} 36... Bxf4 {[%clk 0:00:29.2]} 37. gxf4 {[%clk 0:01:34.7]}
37... Rd1 {[%clk 0:00:21.8]} 38. Ra3 {[%clk 0:01:32.2]} 38... Bc2 {[%clk
0:00:19.8]} 39. c4 {[%clk 0:01:15.1]} 39... Rh1 {[%clk 0:00:15.4]} 40. Bf2
{[%clk 0:01:14.7]} 40... Rh3+ {[%clk 0:00:14.3]} 41. Bg3 {[%clk 0:01:14.7]}
41... Rh1 {[%clk 0:00:11.5]} 42. Re3 {[%clk 0:01:05.4]} 42... Bxa4 {[%clk
0:00:10.1]} 43. Rd3 {[%clk 0:01:06.8]} 43... Bc6 {[%clk 0:00:10.6]} 44. f5+
{[%clk 0:01:07.2]} 44... Ke7 {[%clk 0:00:09.1]} 45. Rd6 {[%clk 0:01:07.8]} 45...
Ba4 {[%clk 0:00:06]} 46. Rxb6 {[%clk 0:01:08.2]} 46... Bd1+ {[%clk 0:00:03.9]}
47. Kf4 {[%clk 0:01:09]} 47... Rf1+ {[%clk 0:00:04]} 48. Ke5 {[%clk 0:01:10.3]}
48... gxf5 {[%clk 0:00:05.5]} 49. exf5 {[%clk 0:01:12.2]} 49... Re1+ {[%clk
0:00:06.5]} 50. Bxe1 {[%clk 0:01:12.9]} 1-0